bitfinex/quotes_ETHUSD_20251011
["timestamp","ask_amount","ask_price","bid_price","bid_amount"]
[1760162828738,1.92,3797.7,3796.2,0.6336]
[1760162828936,2.63342382,3797.4,3796.2,0.6336]
[1760162829168,15.10438553,3797.8,3796.1,0.6336]
[1760162829342,14.64078553,3797.8,3796.1,0.6336]
[1760162829543,1.92,3798.2,3795.1,0.2294]
[1760162829544,2.63381512,3796.8,3795.1,0.2294]
[1760162829738,2.63393562,3796.6,3795.2,1.9232]
[1760162829964,2.63410478,3796.4,3795.3,2.63483782]
[1760162830244,2.63394578,3796.6,3795.4,0.1336]
[1760162830460,2.63373962,3796.9,3796.0,0.002]
[1760162830635,0.4636,3797.7,3796.0,0.002]
[1760162830840,0.222,3797.9,3796.0,0.002]
[1760162830841,0.4636,3797.2,3796.0,0.002]
[1760162831073,2.63407685,3796.4,3796.0,0.002]
[1760162831272,2.63415208,3796.3,3796.0,0.002]
[1760162831479,0.4636,3796.8,3796.0,0.002]
[1760162831987,2.63428255,3796.1,3796.0,0.002]
[1760162832183,14.64078553,3796.7,3796.0,0.002]
[1760162832377,2.63428255,3796.1,3796.0,0.002]
[1760162832756,2.3836,3796.6,3796.0,0.002]
[1760162833062,2.63428255,3796.1,3796.0,0.002]
[1760162833259,0.4636,3796.6,3796.0,0.002]
[1760162833464,3.09788255,3796.1,3796.0,0.002]
[1760162834184,1.92,3796.4,3796.0,0.002]
[1760162834484,1.92,3796.4,3795.6,0.002]
[1760162834485,2.63446012,3795.9,3795.6,0.002]
[1760162834671,2.63473778,3795.5,3795.2,0.002]
[1760162834870,2.63473778,3795.5,3792.9,0.2294]
[1760162834871,2.63497668,3795.1,3792.9,0.1167]
[1760162835075,2.63558581,3794.3,3793.0,0.004]
[1760162835256,14.64078553,3794.5,3792.4,0.1187]
[1760162835580,2.63547279,3794.4,3793.1,0.004]
[1760162835881,2.63567148,3794.1,3792.9,2.63644393]
[1760162836058,14.64078553,3794.5,3792.5,2.87337745]
[1760162836263,0.4636,3794.4,3792.5,0.2366]
[1760162836468,1.92,3794.7,3792.6,2.6367136]
[1760162836669,1.92,3794.7,3793.7,0.6336]
[1760162836859,1.92,3794.9,3793.7,0.6336]
[1760162837071,0.4636,3795.2,3793.9,0.6336]
[1760162837072,2.3836,3795.2,3793.9,0.6336]
[1760162837380,1.92,3795.4,3793.9,0.6336]
[1760162837685,2.87060193,3795.7,3793.9,1.92]
[1760162837883,1.92,3795.5,3793.9,0.6336]
[1760162838184,0.4636,3795.6,3794.0,2.63568021]
[1760162838381,1.92,3795.5,3793.8,0.2334]
[1760162838583,2.63486368,3795.3,3794.4,0.6336]
[1760162838781,2.63486368,3795.3,3794.4,3.26904418]
[1760162838985,2.63486368,3795.3,3794.4,2.63544418]
[1760162839180,0.4636,3795.6,3794.5,2.63534535]
[1760162839483,2.3836,3795.6,3794.4,2.63545208]
[1760162839677,5.01823537,3795.6,3794.3,0.6336]
[1760162839880,1.92,3795.4,3794.4,2.63546278]
[1760162840184,1.92,3795.4,3793.6,2.63595422]
[1760162840185,2.63394956,3796.6,3793.9,0.6336]
[1760162840388,2.63291608,3798.1,3793.9,0.6336]
[1760162840389,0.4636,3795.9,3794.3,0.6336]
[1760162840559,0.4636,3795.8,3794.1,0.6336]
[1760162840755,14.64078553,3795.5,3793.5,0.2334]
[1760162841059,14.64078553,3795.5,3793.5,0.0016]
[1760162841060,2.3836,3795.4,3793.5,0.0016]
[1760162841355,2.63559102,3794.3,3793.4,2.63615456]
[1760162841556,0.4636,3794.7,3793.3,0.0032]
[1760162841759,2.3836,3794.7,3793.1,0.0024]
[1760162841983,1.92,3794.5,3793.1,2.63636015]
[1760162842186,2.63566976,3794.2,3793.2,2.63627424]
[1760162842385,1.92,3794.5,3792.5,0.6368]
[1760162842568,2.63573275,3794.1,3793.2,2.63628535]
[1760162842768,2.63577736,3794.0,3793.3,0.0032]
[1760162842959,2.63577736,3794.0,3793.3,0.0024]
[1760162843165,0.4636,3794.3,3793.3,0.0024]
[1760162843466,2.6356017,3794.2,3793.5,0.6336]
[1760162843671,3.09917383,3794.3,3793.6,0.0016]
[1760162843859,2.63560603,3794.2,3793.3,3.269808]
[1760162844060,2.6356017,3794.2,3793.4,0.0024]
[1760162844282,2.63567613,3794.1,3793.4,0.0016]
[1760162844863,2.3836,3794.7,3793.4,0.0016]
[1760162845079,2.6353945,3794.5,3793.7,2.63593846]
[1760162845264,1.92,3794.3,3793.1,0.2334]
[1760162845466,1.92,3794.5,3793.6,0.6336]
[1760162845672,1.92,3794.8,3793.6,0.6336]
[1760162845959,1.92,3794.8,3793.2,2.63629217]
[1760162845960,0.4636,3795.2,3794.0,0.6336]
[1760162846163,0.4636,3795.2,3794.5,2.63538666]
[1760162846393,0.4636,3795.8,3794.1,0.6336]
[1760162846689,0.4636,3795.8,3794.0,0.2334]
[1760162846690,2.63461817,3795.7,3794.4,3.26906127]
[1760162846892,2.63473115,3795.5,3794.6,2.63527135]
[1760162847107,1.92,3795.4,3794.6,2.63527135]
[1760162847276,0.4636,3795.8,3794.8,2.63517555]
[1760162847694,2.63442495,3795.9,3795.0,2.63501524]
[1760162847890,1.92,3795.8,3795.0,2.63501524]
[1760162848096,2.63442495,3795.9,3795.0,2.63501524]
[1760162848294,2.63442495,3795.9,3794.7,0.6336]
[1760162848295,14.87678553,3796.0,3794.7,0.6336]
[1760162848483,2.63471285,3795.5,3794.7,0.6336]
[1760162848893,0.001,3795.2,3794.8,0.6336]
[1760162849582,0.001,3795.2,3794.4,0.6336]
[1760162849583,2.63594471,3795.2,3794.4,0.6336]
[1760162849987,0.001,3795.2,3794.1,0.6336]
[1760162850187,0.001,3795.2,3795.1,2.63497668]
[1760162850493,0.001,3795.2,3795.1,3.26857668]
[1760162850896,0.001,3795.2,3795.1,3.50197668]
[1760162851488,0.001,3795.2,3795.1,0.6336]
[1760162852000,0.001,3795.2,3795.1,3.26857668]
[1760162852195,0.001,3795.2,3795.1,3.50197668]
[1760162852688,0.001,3795.2,3795.1,3.63317668]
[1760162854501,0.001,3795.2,3795.1,3.39977668]
[1760162854711,0.001,3795.2,3795.1,3.63317668]
[1760162857508,0.001,3795.2,3795.1,5.55317668]
[1760162858220,0.001,3795.2,3795.1,5.42197668]
[1760162862598,0.001,3795.6,3795.5,3.26829898]
[1760162862798,0.001,3795.6,3795.5,5.18829898]
[1760162863105,0.001,3795.6,3795.5,5.42169898]
[1760162863304,0.001,3795.6,3795.5,5.86649898]
[1760162864724,0.001,3796.0,3795.9,5.18802134]
[1760162865227,0.001,3796.0,3795.9,5.42142134]
[1760162866133,0.001,3796.0,3795.9,4.78782134]
[1760162866433,0.001,3796.0,3795.9,2.86782134]
[1760162866927,0.001,3796.0,3795.9,3.50142134]
[1760162868021,0.001,3796.4,3796.3,5.18774377]
[1760162868343,0.6668,3799.8,3798.8,2.63238248]
[1760162868344,3.2985347,3799.8,3798.8,2.63238248]
[1760162868631,3.2985347,3799.8,3797.6,2.63321709]
[1760162868632,0.4448,3799.8,3798.9,0.6336]
[1760162868836,16.60435781,3801.1,3798.9,0.6336]
[1760162868837,0.4448,3800.3,3798.9,0.6336]
[1760162869027,0.4448,3800.3,3798.6,0.1312]
[1760162869028,1.92,3799.5,3798.7,0.6336]
[1760162869414,2.3648,3799.4,3797.9,0.6336]
[1760162869600,2.63244736,3798.8,3797.9,0.6336]
[1760162869802,1.92,3799.5,3798.5,0.6336]
[1760162870048,1.92,3799.5,3798.5,3.2662083]
[1760162870233,1.92,3799.3,3798.5,3.2662083]
[1760162870431,1.92,3799.5,3798.5,0.6336]
[1760162870605,2.6321712,3799.2,3798.3,0.6336]
[1760162870806,0.2196,3799.7,3798.3,0.6336]
[1760162871034,2.63234672,3798.9,3798.2,0.6336]
[1760162871413,1.92,3799.3,3798.3,3.26629856]
[1760162871625,1.92,3799.1,3798.3,3.26629856]
[1760162871814,2.63222736,3799.1,3798.3,3.26629856]
[1760162872145,2.63232921,3799.0,3798.2,0.6336]
[1760162872437,2.63247422,3798.8,3798.0,0.6336]
[1760162872602,0.4607,3799.1,3797.9,0.6336]
[1760162872803,2.63235046,3798.9,3798.2,0.6336]
[1760162873003,2.3807,3799.3,3798.2,0.6336]
[1760162873004,2.63241087,3798.8,3798.2,0.6336]
[1760162873944,2.3807,3799.3,3798.2,0.6336]
[1760162873945,2.63257334,3798.6,3798.2,0.6336]
[1760162874107,2.63255978,3798.6,3797.7,2.63310429]
[1760162874306,2.3807,3798.9,3797.6,0.6336]
[1760162874307,1.92,3798.4,3797.6,2.63319076]
[1760162874535,1.92,3798.4,3796.0,2.6343353]
[1760162874536,0.4607,3798.4,3796.7,0.2314]
[1760162874845,0.8532,3800.5,3796.2,0.1137]
[1760162874846,1.92,3799.0,3798.1,2.6328788]
[1760162875005,2.63228541,3799.0,3797.9,2.86441426]
[1760162875207,0.4607,3799.3,3798.3,0.6336]
[1760162875525,0.2196,3800.5,3798.8,0.6336]
[1760162875526,2.63142825,3800.3,3798.8,0.6336]
[1760162875850,0.2196,3800.5,3798.7,0.6336]
[1760162875851,1.92,3799.4,3798.7,0.6336]
[1760162876006,2.63219553,3799.2,3798.5,0.6336]
[1760162876230,1.92,3799.1,3798.5,0.6336]
[1760162876425,1.92,3799.1,3798.4,0.6336]
[1760162876633,1.92,3798.9,3798.2,2.63281331]
[1760162876871,2.63239271,3798.9,3798.3,0.6336]
[1760162877070,1.92,3799.0,3797.9,2.63303305]
[1760162877071,2.63227165,3799.0,3797.9,2.63303305]
[1760162877239,2.63227165,3799.0,3797.5,0.2314]
[1760162877240,2.63276649,3798.3,3796.9,0.2314]
[1760162877442,2.63283559,3798.2,3797.1,1.92]
[1760162877654,2.63269423,3798.4,3796.5,0.2314]
[1760162877655,2.63324467,3797.6,3796.5,0.2314]
[1760162877853,2.63348121,3797.3,3796.4,2.63406547]
[1760162878053,3.09388461,3797.7,3796.8,2.63378478]
[1760162878254,0.4607,3797.7,3796.4,2.86541651]
[1760162878454,0.4607,3797.7,3796.5,0.6336]
[1760162878656,0.4607,3797.7,3796.3,2.63410319]
[1760162878862,2.63358882,3797.1,3796.2,0.1137]
[1760162879135,2.63342238,3797.4,3796.3,0.6336]
[1760162879356,2.63342238,3797.4,3795.9,0.2314]
[1760162879357,0.4607,3797.3,3795.8,0.1127]
[1760162879633,2.63369633,3797.0,3796.1,2.63423211]
[1760162879839,2.63369633,3797.0,3796.2,0.6336]
[1760162880065,0.4607,3797.3,3795.8,0.1127]
[1760162880260,0.4607,3797.3,3795.1,2.63690943]
[1760162880261,1.92,3797.0,3795.4,0.2314]
[1760162880567,0.4607,3796.9,3795.5,0.1127]
[1760162880745,2.63393997,3796.6,3795.8,2.63448636]
[1760162880934,2.63402002,3796.5,3795.6,2.63458621]
[1760162881131,2.63402002,3796.5,3795.7,3.26814625]
[1760162881334,2.63402002,3796.5,3795.7,2.63454625]
[1760162881531,2.63399503,3796.6,3795.7,2.63454434]
[1760162881738,0.4607,3797.6,3795.9,0.6336]
[1760162881936,13.96424602,3796.5,3795.1,0.002]
[1760162882137,4.78600725,3795.2,3795.1,0.002]
[1760162882338,2.63518498,3794.8,3794.7,0.002]
[1760162882554,4.55518498,3794.8,3794.7,0.002]
[1760162882757,4.55546278,3794.4,3793.1,0.002]
[1760162883160,0.4607,3794.4,3793.1,0.002]
[1760162883470,2.63614594,3793.5,3793.2,0.00334411]
[1760162883658,1.92,3794.2,3793.1,0.002]
[1760162883866,0.6918,3793.4,3793.1,0.002]
[1760162884051,2.63629653,3793.2,3793.1,0.002]
[1760162884252,1.92,3793.2,3793.1,0.002]
[1760162884450,5.01699653,3793.2,3793.1,0.002]
[1760162885454,1.92,3793.2,3793.1,0.002]
[1760162885858,0.2311,3793.4,3793.1,0.002]
[1760162886167,1.92,3793.3,3793.1,0.002]
[1760162886541,2.63629653,3793.2,3793.1,0.002]
[1760162886747,3.09699653,3793.2,3793.1,0.002]
[1760162887049,5.01699653,3793.2,3793.1,0.002]
[1760162888781,5.01699653,3793.2,3792.7,0.002]
[1760162888782,2.63657456,3792.8,3792.7,0.002]
[1760162888949,4.55657456,3792.8,3792.7,0.002]
[1760162889149,5.02537456,3792.8,3792.7,0.002]
[1760162889352,2.63685265,3792.4,3792.3,0.002]
[1760162889550,18.93462066,3792.4,3792.3,0.002]
[1760162889757,18.98989867,3792.4,3792.3,0.002]
[1760162890174,2.3888,3792.4,3792.3,0.002]
[1760162890677,1.92,3792.4,3792.3,0.002]
[1760162891176,0.4688,3793.1,3792.3,0.002]
[1760162891387,0.4688,3793.6,3792.3,0.002]
[1760162891677,0.4688,3793.6,3792.5,2.63676823]
[1760162891980,0.4688,3793.6,3792.7,2.63664165]
[1760162892178,0.4688,3793.6,3792.5,3.27037995]
[1760162892347,13.96424602,3794.3,3792.3,0.002]
[1760162892348,2.63596361,3793.7,3792.6,2.6367136]
[1760162892678,2.63602848,3793.6,3792.7,0.6336]
[1760162892978,3.10463233,3793.9,3792.7,3.27018723]
[1760162892979,3.10462484,3793.9,3792.7,3.27018723]
[1760162893279,0.4688,3794.7,3792.7,0.2374]
[1760162893481,0.4688,3794.7,3793.1,0.6336]
[1760162893482,3.10407896,3794.7,3793.1,0.6336]
[1760162893696,3.10407896,3794.7,3793.0,2.63643553]
[1760162893697,0.4688,3794.7,3793.2,2.63624207]
[1760162893849,0.4688,3794.7,3793.1,3.26989874]
[1760162894196,0.41334009,3795.0,3791.6,2.63740329]
[1760162894197,1.92,3793.6,3791.6,2.63740329]
[1760162894400,2.63677877,3792.6,3791.6,2.63740329]
[1760162894694,2.63677877,3792.6,3790.8,2.87535717]
[1760162894695,2.63685265,3792.4,3790.8,0.2374]
[1760162895059,2.63685265,3792.4,3790.9,0.6336]
[1760162895267,5.02565265,3792.4,3790.8,2.63796519]
[1760162895447,5.02565265,3792.4,3790.9,2.63789304]
[1760162895777,5.02565265,3792.4,3790.5,0.2374]
[1760162896284,5.02565265,3792.4,3790.6,0.6336]
[1760162896468,5.02565265,3792.4,3790.5,0.2374]
[1760162896469,2.3888,3792.4,3790.5,0.2374]
[1760162896672,1.92,3792.4,3791.2,0.2374]
[1760162896879,1.92,3792.4,3791.9,0.6336]
[1760162897087,1.92,3792.4,3791.3,0.6336]
[1760162897254,0.4688,3793.1,3791.3,0.6336]
[1760162897577,1.92,3793.2,3792.2,0.6336]
[1760162897786,0.4688,3794.4,3792.6,2.63671075]
[1760162897987,0.4688,3794.4,3792.6,2.6366871]
[1760162897988,2.63602246,3793.6,3792.6,2.6366871]
[1760162898169,2.63545977,3794.5,3792.9,0.6336]
[1760162898170,2.63587959,3793.8,3792.9,0.6336]
[1760162898376,0.4688,3794.1,3792.9,3.27008983]
[1760162898678,0.4688,3794.1,3792.3,0.2394]
[1760162898679,2.63595561,3793.7,3792.5,0.6336]
[1760162898881,1.92,3794.3,3792.8,0.6336]
[1760162899068,1.92,3794.3,3792.3,0.2394]
[1760162899069,0.4688,3793.6,3792.3,0.002]
[1760162899482,2.63657525,3792.8,3792.3,0.002]
[1760162899685,2.63654056,3792.9,3792.3,0.002]
[1760162899882,1.92,3793.4,3792.4,0.6336]
[1760162899883,2.63622418,3793.4,3792.4,0.6336]
[1760162900068,1.92,3793.2,3792.4,0.6336]
[1760162900268,0.4688,3794.3,3792.6,3.2703136]
[1760162900481,2.6356017,3794.2,3792.6,0.6336]
[1760162900680,2.63594984,3793.7,3792.9,0.6336]
[1760162900881,2.63571173,3794.1,3793.1,2.63630509]
[1760162901082,2.63568423,3794.1,3793.2,0.6336]
[1760162901288,2.63587622,3793.9,3793.2,0.6336]
[1760162901485,2.63566607,3794.2,3793.3,0.6336]
[1760162901795,2.63581773,3793.9,3793.2,2.5536]
[1760162901972,0.4688,3794.3,3793.1,0.6336]
[1760162902293,2.63595359,3793.7,3793.1,0.6336]
[1760162902600,2.63576289,3794.0,3793.1,3.26994643]
[1760162902971,0.001,3793.7,3793.1,3.26994643]
[1760162903177,0.001,3793.7,3793.1,0.6336]
[1760162903577,0.001,3793.7,3793.2,0.6336]
[1760162904011,0.001,3793.7,3793.0,0.6336]
[1760162904188,2.63602036,3793.6,3793.0,0.6336]
[1760162904392,2.63602036,3793.6,3792.7,2.76778816]
[1760162904393,0.001,3793.7,3792.8,0.6336]
[1760162904582,0.001,3793.7,3792.9,2.63650504]
[1760162904908,2.63695282,3793.7,3792.9,2.63650504]
[1760162905415,2.63602148,3793.6,3792.8,3.27011862]
[1760162905595,2.63695995,3793.7,3792.9,2.63648159]
[1760162905799,0.001,3793.7,3793.0,0.2374]
[1760162905995,0.001,3793.7,3793.2,0.6336]
[1760162906198,0.001,3793.7,3793.3,2.63621881]
[1760162906917,0.001,3793.7,3792.3,0.2394]
[1760162907209,2.63616497,3793.4,3792.4,0.6356]
[1760162907510,2.63615753,3793.4,3792.5,2.63676969]
[1760162907724,4.55678312,3792.5,3792.4,0.002]
[1760162907877,1.92,3792.4,3789.7,0.2394]
[1760162908078,1.92,3792.1,3789.8,0.0008]
[1760162908314,2.6378197,3791.1,3789.8,2.63944458]
[1760162908608,2.63776117,3791.1,3789.8,0.0008]
[1760162908815,0.2194,3791.8,3789.9,2.63856439]
[1760162909012,1.92,3791.4,3789.9,0.2434]
[1760162909210,0.4688,3791.5,3790.0,0.0024]
[1760162909390,2.63783084,3791.0,3790.1,2.6384406]
[1760162909585,2.63776336,3791.1,3790.2,0.0024]
[1760162909811,2.63767234,3791.3,3790.1,2.63844911]
[1760162910013,0.4688,3791.5,3790.4,0.6336]
[1760162910210,0.4688,3791.5,3790.5,0.0016]
[1760162910386,2.63776366,3791.1,3790.2,2.63832553]
[1760162910584,2.3888,3791.5,3790.2,0.0024]
[1760162910788,2.6376318,3791.3,3790.5,0.6336]
[1760162910986,3.10630783,3791.5,3790.5,0.6336]
[1760162911211,3.10630783,3791.5,3790.7,3.27158361]
[1760162911212,2.3888,3791.5,3790.7,3.27158361]
[1760162911384,1.92,3791.7,3790.7,0.6336]
[1760162911817,1.92,3791.7,3790.9,0.6336]
[1760162912022,1.92,3791.9,3790.9,0.6336]
[1760162912328,1.92,3791.7,3790.9,0.6336]
[1760162912493,0.4688,3791.9,3791.0,0.6336]
[1760162912698,0.4688,3791.9,3790.9,0.6336]
[1760162912699,2.6373532,3791.7,3790.9,0.6336]
[1760162912895,2.6373532,3791.7,3791.0,0.6336]
[1760162913102,1.92,3791.7,3791.1,0.6336]
[1760162913498,0.4688,3791.9,3789.6,0.2434]
[1760162913788,2.63760449,3791.4,3790.6,0.6336]
[1760162914294,2.63760449,3791.4,3790.6,2.63806992]
[1760162914498,2.63749254,3791.5,3790.8,0.6336]
[1760162914694,2.63736077,3791.7,3790.8,0.6336]
[1760162914695,2.63755511,3791.4,3790.8,0.6336]
[1760162914881,2.6374845,3791.5,3790.8,0.6336]
[1760162915523,2.63736077,3791.7,3790.8,0.6336]
[1760162915524,2.63755079,3791.4,3790.8,0.6336]
[1760162915889,2.63755079,3791.4,3790.5,0.6336]
[1760162916090,2.63769137,3791.2,3790.5,0.6336]
[1760162916493,2.63762906,3791.3,3790.5,3.27175952]
[1760162916700,2.63762906,3791.3,3790.2,2.76907674]
[1760162916701,0.4688,3791.5,3790.6,0.6336]
[1760162917030,2.63685265,3792.4,3791.5,0.6336]
[1760162917209,0.2194,3792.5,3791.3,0.6336]
[1760162917384,2.63699171,3792.2,3791.5,0.6336]
[1760162917590,0.4688,3792.3,3791.5,0.6336]
[1760162917792,2.63735786,3791.7,3790.9,0.6336]
[1760162918190,2.63728385,3791.8,3790.9,3.27143998]
[1760162918424,2.63735295,3791.7,3790.9,3.27143998]
[1760162918621,2.85618852,3792.5,3790.9,0.6336]
[1760162918820,2.63733945,3791.7,3790.7,0.6336]
[1760162918988,2.63763785,3791.3,3790.7,0.6336]
[1760162919388,2.63762643,3791.3,3790.5,2.63816423]
[1760162919622,2.63759966,3791.4,3790.7,0.6336]
[1760162919848,2.63762525,3791.3,3790.7,0.6336]
[1760162919994,2.63762525,3791.3,3790.6,0.6336]
[1760162920627,0.4648,3791.8,3790.1,0.1307]
[1760162920826,0.4648,3792.3,3791.0,0.6336]
[1760162921013,2.63742494,3791.6,3790.8,0.6336]
[1760162921197,2.63742494,3791.6,3790.8,3.27153086]
[1760162921394,0.2194,3792.5,3791.2,0.6336]
[1760162921395,0.4648,3792.3,3791.2,0.6336]
[1760162921593,2.63732626,3791.8,3791.2,0.6336]
[1760162922029,1.92,3791.7,3791.2,0.6336]
[1760162922216,0.4648,3791.7,3791.5,0.002]
[1760162922396,0.4648,3791.6,3791.5,0.002]
[1760162922799,5.022209,3791.6,3791.5,0.002]
[1760162926103,4.557409,3791.6,3791.5,0.002]
[1760162926309,5.022209,3791.6,3791.5,0.002]
[1760162927134,4.557409,3791.6,3791.5,0.002]
[1760162927342,1.92,3791.6,3791.5,0.002]
[1760162927643,4.557409,3791.6,3791.5,0.002]
[1760162927823,1.92,3791.6,3791.5,0.002]
[1760162928028,5.022209,3791.6,3791.5,0.002]
[1760162929825,4.557409,3791.6,3791.5,0.002]
[1760162930311,5.022709,3791.6,3791.5,0.002]
[1760162930645,2.3853,3791.6,3791.5,0.002]
[1760162931140,5.022709,3791.6,3791.5,0.002]
[1760162932042,4.972709,3791.6,3791.5,0.002]
[1760162934653,4.507409,3791.6,3791.5,0.002]
[1760162934861,1.87,3791.6,3791.5,0.002]
[1760162935664,0.2337,3793.4,3791.6,0.6336]
[1760162935815,0.2337,3793.4,3791.8,0.6336]
[1760162935816,0.699,3793.4,3791.8,0.6336]
[1760162936019,1.92,3792.7,3792.0,2.63712823]
[1760162936267,1.92,3792.7,3791.8,0.6336]
[1760162936268,2.63651753,3792.9,3792.1,2.63705945]
[1760162936473,0.2337,3793.4,3792.4,0.6336]
[1760162936675,0.001,3793.7,3793.3,0.6336]
[1760162937083,0.001,3793.7,3793.6,3.26961855]
[1760162937258,0.001,3793.7,3793.6,0.6336]
[1760162937447,0.001,3793.7,3792.8,0.6336]
[1760162937776,0.001,3793.7,3792.3,0.2434]
[1760162937983,0.001,3793.7,3791.9,2.35600412]
[1760162937984,0.001,3793.7,3793.0,2.6364311]
[1760162938289,0.001,3793.7,3793.3,0.6336]
[1760162938589,0.001,3793.7,3793.2,0.6336]
[1760162938747,0.001,3793.7,3793.3,0.2434]
[1760162939080,0.001,3793.7,3793.4,0.6336]
[1760162939286,0.001,3793.7,3792.8,2.636544]
[1760162939287,0.001,3793.7,3793.0,2.76759422]
[1760162939454,0.001,3793.7,3793.1,0.6336]
[1760162939853,0.001,3793.7,3793.6,3.26961855]
[1760162940391,0.001,3793.7,3793.6,3.51301855]
[1760162941473,0.001,3793.7,3793.6,3.26961855]
[1760162941676,0.001,3793.7,3793.6,3.51301855]
[1760162941985,0.001,3793.7,3793.6,3.64421855]
[1760162942280,0.001,3793.7,3793.6,3.26961855]
[1760162942771,0.001,3793.7,3793.6,3.51301855]
[1760162945344,0.001,3793.7,3793.6,5.43301855]
[1760162948346,0.001,3793.7,3793.6,3.26961855]
[1760162948553,0.001,3793.7,3793.6,3.51301855]
[1760162951752,0.001,3793.7,3793.6,2.63601855]
[1760162952154,0.001,3793.7,3793.6,2.87941855]
[1760162952392,0.001,3793.7,3793.6,3.64421855]
[1760162952758,0.001,3793.7,3793.6,3.40081855]
[1760162952959,0.001,3793.7,3793.6,3.26961855]
[1760162953996,0.001,3793.7,3793.6,3.64421855]
[1760162955687,0.001,3793.7,3793.6,5.56421855]
[1760162962392,0.001,3793.7,3793.6,4.68721855]
[1760162962616,0.001,3793.7,3793.6,4.93061855]
[1760162962803,0.001,3793.7,3793.6,5.56421855]
[1760162966023,0.001,3793.7,3793.6,7.92022267]
[1760162966424,0.001,3794.1,3794.0,5.18934064]
[1760162966923,0.001,3794.1,3794.0,5.56394064]
[1760162969121,0.001,3794.1,3794.0,3.64394064]
[1760162971136,0.001,3794.1,3794.0,3.51274064]
[1760162971428,0.001,3794.1,3794.0,3.64394064]
[1760162976425,0.001,3794.1,3794.0,5.56394064]
[1760162978519,0.001,3794.1,3794.0,5.32054064]
[1760162978719,0.001,3794.1,3794.0,5.56394064]
[1760162980017,0.001,3794.1,3794.0,4.55574064]
[1760162980647,0.001,3794.1,3794.0,5.18934064]
[1760162981635,0.001,3794.1,3794.0,3.51274064]
[1760162982312,0.001,3794.1,3794.0,3.64394064]
[1760162983045,0.001,3794.1,3794.0,5.56394064]
[1760162983736,0.001,3794.1,3794.0,3.26934064]
[1760162983914,0.001,3794.1,3794.0,3.51274064]
[1760162984243,0.001,3794.1,3794.0,2.63574064]
[1760162984447,0.001,3794.1,3794.0,3.26934064]
[1760162987246,0.001,3794.1,3794.0,3.51274064]
[1760162987953,0.001,3794.1,3794.0,3.26934064]
[1760162988327,0.001,3794.1,3794.0,3.51274064]
[1760162990238,0.001,3794.1,3794.0,3.26934064]
[1760162990753,0.001,3794.1,3794.0,3.51274064]
[1760162991323,0.001,3794.1,3794.0,3.26934064]
[1760162991624,0.001,3794.1,3794.0,3.51274064]
[1760162992940,0.001,3794.1,3794.0,5.88279608]
[1760162993278,0.001,3794.1,3794.0,3.51274064]
[1760162993648,0.001,3794.1,3794.0,3.64394064]
[1760162994248,0.001,3794.1,3794.0,5.56394064]
[1760162995478,0.001,3794.3,3794.2,3.2692017]
[1760162995673,0.001,3794.3,3794.2,5.3204017]
[1760162995875,0.001,3794.3,3794.2,5.5638017]
[1760162996371,0.001,3794.3,3794.2,5.66953802]
[1760162997280,0.001,3794.3,3794.2,3.74953802]
[1760162997680,0.001,3794.3,3794.2,3.6438017]
[1760162998668,0.001,3794.3,3794.2,3.5126017]
[1760162998870,0.001,3794.3,3794.2,3.61833802]
[1760162999070,0.001,3794.3,3794.2,3.5126017]
[1760163001482,0.001,3794.3,3794.2,2.8790017]
[1760163001889,0.001,3794.5,3794.4,5.18906278]
[1760163002190,2.63314013,3797.8,3794.7,1.92]
[1760163002360,3.09466326,3798.1,3794.8,0.873]
[1760163002361,0.59928103,3798.1,3794.8,0.873]
[1760163002550,0.59928103,3798.1,3794.5,4.71200825]
[1760163002551,0.59928103,3798.1,3796.9,0.6336]
[1760163002757,0.4617,3798.0,3796.0,0.2394]
[1760163003063,0.2207,3797.9,3796.5,0.6336]
[1760163003278,2.6331727,3797.7,3795.7,0.6336]
[1760163003482,2.63391926,3796.7,3795.6,2.87402746]
[1760163003684,0.73215305,3797.6,3796.0,0.6336]
[1760163003685,2.63380274,3796.8,3796.0,0.6336]
[1760163003994,0.4617,3797.1,3796.1,3.26785719]
[1760163004158,2.63210186,3799.3,3796.1,0.6336]
[1760163004159,0.4617,3797.5,3796.1,0.6336]
[1760163004482,2.3817,3797.4,3795.9,0.6336]
[1760163004685,2.65215305,3797.4,3796.0,0.6336]
[1760163004892,1.92,3796.9,3796.2,0.6336]
[1760163005070,2.63374716,3796.9,3796.2,0.6336]
[1760163005390,0.4617,3798.0,3796.7,0.6336]
[1760163005580,0.13758103,3798.1,3797.2,0.6336]
[1760163005955,1.92,3797.9,3797.2,0.6336]
[1760163006161,2.63267834,3798.5,3797.4,0.6336]
[1760163006355,2.63281795,3798.3,3797.4,3.26691182]
[1760163006561,2.63281795,3798.3,3797.6,0.6336]
[1760163006562,1.92,3798.2,3797.6,0.6336]
[1760163007180,0.59926424,3798.7,3797.3,0.6336]
[1760163007390,2.63254883,3798.6,3797.8,0.6336]
[1760163007598,2.77005208,3798.7,3798.0,0.6336]
[1760163007802,0.4617,3799.1,3798.1,0.7603]
[1760163008102,0.4617,3799.1,3798.1,3.39316548]
[1760163008279,2.632446,3798.8,3797.8,0.6336]
[1760163008687,2.63260773,3798.6,3797.8,0.6336]
[1760163008881,0.4723,3798.9,3797.8,0.6336]
[1760163009193,0.13755314,3799.2,3797.7,2.63314031]
[1760163009194,2.63260338,3798.6,3797.7,2.63314031]
[1760163009396,0.4723,3798.6,3797.5,0.7648]
[1760163009581,2.63277968,3798.3,3797.5,3.39805591]
[1760163009775,1.92,3798.5,3797.7,0.6336]
[1760163009994,0.4723,3798.6,3797.4,0.1267]
[1760163010196,0.4723,3798.6,3797.2,0.1312]